fUST/lending_fUST_20260111
["ID","MTS","AMOUNT","RATE_DAILY","PERIOD"]
[401245093,1768068643965,-151.0,0.00036995,31]
[401245094,1768068643975,-151.0,0.00036995,31]
[401245095,1768068643984,-151.0,0.00036995,31]
[401245096,1768068643994,-151.0,0.00036995,31]
[401245097,1768068644003,-151.0,0.00036995,31]
[401245098,1768068644013,-151.0,0.00036995,31]
[401245099,1768068644023,-151.0,0.00036995,31]
[401245100,1768068644032,-151.0,0.00036995,31]
[401245101,1768068644042,-151.0,0.00036995,31]
[401245102,1768068644052,-151.0,0.00036995,31]
[401245103,1768068644061,-151.0,0.00036995,31]
[401245104,1768068644070,-242.550437,0.00036995,31]
[401245105,1768068644080,-151.0,0.00036995,28]
[401245106,1768068644090,-151.0,0.00036995,28]
[401245107,1768068644100,-151.0,0.00036995,28]
[401245108,1768068644109,-151.0,0.00036995,28]
[401245109,1768068644123,-241.887947,0.00036995,28]
[401245110,1768068644133,-315.18853,0.00036995,31]
[401245111,1768068644235,-315.18853,0.00036995,31]
[401245112,1768068644263,-315.18853,0.00036995,31]
[401245113,1768068644275,-315.18853,0.00036995,31]
[401245114,1768068644285,-315.18853,0.00036995,31]
[401245115,1768068644296,-315.18853,0.00036995,31]
[401245116,1768068644306,-315.18853,0.00036995,31]
[401245117,1768068644315,-315.18853,0.00036995,31]
[401245118,1768068644326,-315.18853,0.00036995,31]
[401245119,1768068644336,-315.18853,0.00036995,31]
[401245120,1768068644346,-315.18853,0.00036995,31]
[401245121,1768068644355,-315.18853,0.00036995,31]
[401245122,1768068644365,-315.18853,0.00036995,31]
[401245123,1768068644376,-315.18853,0.00036995,31]
[401245124,1768068644385,-315.18853,0.00036995,31]
[401245125,1768068644395,-315.188524,0.00036995,31]
[401245126,1768068644404,-151.0,0.00037,10]
[401245127,1768068644414,-151.0,0.00037,14]
[401245128,1768068644423,-151.0,0.00037,19]
[401245129,1768068644432,-151.0,0.00037,10]
[401245130,1768068644441,-151.0,0.00037,19]
[401245131,1768068644451,-2509.35859505,0.00037,120]
[401245132,1768068644461,-150.0,0.00037,2]
[401245133,1768068644470,-152.0,0.00037044,14]
[401245134,1768068644479,-152.0,0.00037044,14]
[401245135,1768068644489,-152.0,0.00037044,14]
[401245136,1768068644498,-152.0,0.00037044,14]
[401245137,1768068644508,-152.0,0.00037044,14]
[401245138,1768068644517,-152.0,0.00037044,14]
[401245139,1768068644527,-152.0,0.00037044,14]
[401245140,1768068644536,-152.0,0.00037044,14]
[401245141,1768068644546,-202.68303487,0.00037044,14]
[401245142,1768068644556,-500.0,0.00037047,14]
[401245143,1768068644566,-1112.0,0.00037049,9]
[401245144,1768068644576,-1112.0,0.0003705,10]
[401245145,1768068644586,-585.10841417,0.00037051,2]
[401245146,1768068644595,-151.0,0.00037051,31]
[401245147,1768068644605,-163.913875,0.00037051,31]
[401245148,1768068644615,-151.0,0.00037051,31]
[401245149,1768068644625,-151.0,0.00037051,31]
[401245150,1768068644635,-151.0,0.00037051,31]
[401245151,1768068644650,-214.28838,0.00037051,31]
[401245152,1768068644660,-151.0,0.00037051,31]
[401245153,1768068644670,-151.0,0.00037051,31]
[401245154,1768068644680,-211.591357,0.00037051,31]
[401245155,1768068644691,-151.0,0.00037051,31]
[401245156,1768068644701,-151.0,0.00037051,31]
[401245157,1768068644710,-151.0,0.00037051,31]
[401245158,1768068644720,-157.126084,0.00037051,31]
[401245159,1768068644730,-151.0,0.00037051,31]
[401245160,1768068644739,-155.211218,0.00037051,31]
[401245161,1768068644750,-151.0,0.00037051,31]
[401245162,1768068644760,-151.0,0.00037051,31]
[401245163,1768068644769,-151.0,0.00037051,31]
[401245164,1768068644779,-151.0,0.00037051,31]
[401245165,1768068644789,-155.463633,0.00037051,31]
[401245166,1768068644799,-626.98157651,0.00037051,7]
[401245167,1768068644809,-852531.8281279,0.00037051,20]
[401245168,1768068644818,-2580624.58820199,0.00037051,20]
[401245169,1768068644885,-4889.26336918,0.00037051,20]
[401245170,1768068644896,-91307.98995473,0.00037051,20]
[401245171,1768068644907,-2026.77100699,0.00037051,20]
[401245172,1768068645165,-676.0,0.00036712,30]
[401245173,1768068645175,-453.20238294,0.000368,2]
[401245174,1768068645184,-384.38761706,0.00037051,20]
[401245175,1768068646255,-649.0,0.00036995,30]
[401245176,1768068646265,-569.45673616,0.00037051,20]
[401245451,1768068827962,1000.0,0.00030136,120]
[401245452,1768068897654,2000.0,0.00030136,120]
[401245453,1768068920267,150.0,7.292e-05,2]
[401245454,1768068920677,150.0,7.64e-05,2]
[401245455,1768068921076,150.0,7.987e-05,2]
[401245456,1768068921467,175.19,8.334e-05,2]
[401245457,1768068921878,218.99,8.681e-05,2]
[401245458,1768068922327,262.79,9.029e-05,2]
[401245459,1768068922715,306.59,9.376e-05,2]
[401245460,1768068996637,150.0,7.272e-05,2]
[401245461,1768068997026,150.0,7.618e-05,2]
[401245462,1768068997534,150.0,7.964e-05,2]
[401245463,1768068997833,150.0,8.31e-05,2]
[401245464,1768068998231,150.0,8.657e-05,2]
[401245465,1768068998677,154.85,9.003e-05,2]
[401245466,1768068999056,180.65,9.349e-05,2]
[401245467,1768069065755,150.0,7.264e-05,2]
[401245468,1768069066149,150.0,7.61e-05,2]
[401245469,1768069066592,150.0,7.955e-05,2]
[401245470,1768069067099,150.0,8.301e-05,2]
[401245471,1768069067389,150.0,8.647e-05,2]
[401245472,1768069068296,150.0,8.993e-05,2]
[401245473,1768069132180,150.0,6.612e-05,2]
[401245474,1768069132577,150.0,6.927e-05,2]
[401245475,1768069132979,173.72,7.242e-05,2]
[401245476,1768069133403,231.62,7.557e-05,2]
[401245477,1768069133822,289.53,7.872e-05,2]
[401245478,1768069134208,347.43,8.186e-05,2]
[401245479,1768069134588,405.34,8.501e-05,2]
[401245480,1768069134985,463.25,8.816e-05,2]
[401245481,1768069135384,521.15,9.131e-05,2]
[401245482,1768069135768,579.06,9.446e-05,2]
[401245483,1768069199857,3699.6945522,8.789e-05,2]
[401245484,1768069206078,150.0,6.653e-05,2]
[401245485,1768069206516,150.0,6.97e-05,2]
[401245486,1768069207206,150.0,7.603e-05,2]
[401245487,1768069207724,150.0,7.92e-05,2]
[401245488,1768069208009,150.0,8.237e-05,2]
[401245489,1768069208854,150.0,8.87e-05,2]
[401245490,1768069243380,-210.53229853,9.515e-05,2]
[401245491,1768069243411,-500.0,9.515e-05,2]
[401245492,1768069243439,-150.0,9.515e-05,2]
[401245493,1768069243466,-500.0,9.515e-05,2]
[401245494,1768069243495,-200.0,9.515e-05,2]
[401245495,1768069243522,-200.0,9.515e-05,2]
[401245496,1768069273300,150.0,6.213e-05,2]
[401245497,1768069337986,150.0,6.178e-05,2]
[401245498,1768069456871,150.0,9.515e-05,2]
[401245499,1768069457306,150.0,9.515e-05,2]
[401245500,1768069458808,150.0,9.515e-05,2]
[401245504,1768069642740,500.0,0.00030137,120]
[401245505,1768069663547,-300.0,9.651e-05,2]
[401245506,1768069663581,-1200.0,9.651e-05,2]
[401245507,1768069663615,-300.0,9.651e-05,2]
[401245508,1768069663647,-300.0,9.651e-05,2]
[401245509,1768069663682,-168.05241776,9.651e-05,2]
[401245510,1768069663714,-500.0,9.652e-05,2]
[401245511,1768069663748,-150.0,9.652e-05,2]
[401245512,1768069663780,-500.0,9.652e-05,2]
[401245513,1768069663815,-150.0,9.652e-05,2]
[401245514,1768069663848,-150.0,9.652e-05,2]
[401245515,1768069663880,-150.0,9.652e-05,2]
[401245516,1768069663911,-150.0,9.652e-05,2]
[401245517,1768069664111,-150.0,9.652e-05,2]
[401245518,1768069664142,-150.0,9.652e-05,2]
[401245519,1768069664172,-150.0,9.652e-05,2]
[401245520,1768069682316,300.0,9.651e-05,2]
[401245522,1768069743191,300.0,9.651e-05,2]
[401245523,1768069768507,258.0,9.515e-05,2]
[401245524,1768069778639,205.90516448,9.552e-05,2]
[401245525,1768069778663,10000.01,9.552e-05,2]
[401245526,1768069778688,10000.01,9.552e-05,2]
[401245527,1768069778712,10000.01,9.552e-05,2]
[401245528,1768069778736,10000.01,9.552e-05,2]
[401245530,1768069786767,-553.02272024,9.552e-05,2]
[401245531,1768069788881,-184.87438556,9.552e-05,2]
[401245532,1768069791057,-194.6471544,9.552e-05,2]
[401245533,1768069792705,-302.97291674,9.552e-05,2]
[401245534,1768069794655,-316.76736443,9.552e-05,2]
[401245535,1768069800342,-259.34177295,9.552e-05,2]
[401245536,1768069802767,219.0,9.551e-05,2]
[401245537,1768069802980,1200.0,9.551e-05,2]
[401245538,1768069803336,300.0,9.551e-05,2]
[401245539,1768069804634,554.0,9.552e-05,2]
[401245540,1768069807380,-479.57405048,9.552e-05,2]
[401245541,1768069808867,-166.95029715,9.552e-05,2]
[401245542,1768069810402,-352.3680819,9.552e-05,2]
[401245543,1768069813174,-164.31311569,9.552e-05,2]
[401245544,1768069815829,-335.02197347,9.552e-05,2]
[401245545,1768069818479,-295.81390801,9.552e-05,2]
[401245546,1768069821560,-245.7320546,9.552e-05,2]
[401245547,1768069823089,-393.18225642,9.552e-05,2]
[401245548,1768069826180,-356.0873905,9.552e-05,2]
[401245549,1768069831673,630.2147913,9.551e-05,2]
[401245586,1768069832252,-317.80609975,9.552e-05,2]
[401245616,1768069832814,-110755.73918286,9.552e-05,2]
[401245617,1768069832826,-1420.2,9.552e-05,2]
[401245634,1768069833731,-236.83101623,9.552e-05,2]
[401245635,1768069835733,500.0,9.551e-05,2]
[401245636,1768069835772,500.0,9.551e-05,2]
[401245637,1768069835808,500.0,9.551e-05,2]
[401245638,1768069835846,500.0,9.551e-05,2]
[401245639,1768069835895,500.0,9.551e-05,2]
[401245640,1768069835933,500.0,9.551e-05,2]
[401245641,1768069835967,500.0,9.551e-05,2]
[401245642,1768069836014,500.0,9.551e-05,2]
[401245643,1768069836045,500.0,9.551e-05,2]
[401245644,1768069836077,500.0,9.551e-05,2]
[401245645,1768069836113,500.0,9.551e-05,2]
[401245646,1768069836151,500.0,9.551e-05,2]
[401245647,1768069836198,500.0,9.551e-05,2]
[401245648,1768069836235,500.0,9.551e-05,2]
[401245649,1768069836271,96.7952087,9.551e-05,2]
[401245650,1768069836294,403.2047913,9.551e-05,2]
[401245651,1768069836344,500.0,9.551e-05,2]
[401245652,1768069836378,500.0,9.551e-05,2]
[401245653,1768069836414,500.0,9.551e-05,2]
[401245654,1768069836462,500.0,9.551e-05,2]
[401245655,1768069836499,500.0,9.551e-05,2]
[401245656,1768069836535,500.0,9.551e-05,2]
[401245657,1768069836588,500.0,9.551e-05,2]
[401245658,1768069836622,500.0,9.551e-05,2]
[401245659,1768069836672,500.0,9.551e-05,2]
[401245660,1768069836709,443.6860772,9.551e-05,2]
[401245661,1768069836745,500.0,9.551e-05,2]
[401245662,1768069836795,500.0,9.551e-05,2]
[401245663,1768069836829,500.0,9.551e-05,2]
[401245664,1768069836871,500.0,9.551e-05,2]
[401245665,1768069836919,500.0,9.551e-05,2]
[401245666,1768069836957,500.0,9.551e-05,2]
[401245667,1768069837014,476.81444815,9.551e-05,2]
[401245668,1768069837055,500.0,9.551e-05,2]
[401245669,1768069837091,500.0,9.551e-05,2]
[401245670,1768069837129,176.30468335,9.551e-05,2]
[401245671,1768069837155,323.69531665,9.551e-05,2]
[401245672,1768069837207,168.00308334,9.551e-05,2]
[401245673,1768069837246,500.0,9.551e-05,2]
[401245674,1768069837389,270.0,9.551e-05,2]
[401245675,1768069837439,500.0,9.551e-05,2]
[401245676,1768069837480,500.0,9.551e-05,2]
[401245677,1768069837518,500.0,9.551e-05,2]
[401245678,1768069837569,500.0,9.551e-05,2]
[401245679,1768069837624,500.0,9.551e-05,2]
[401245680,1768069837666,500.0,9.551e-05,2]
[401245681,1768069837717,500.0,9.551e-05,2]
[401245682,1768069837754,500.0,9.551e-05,2]
[401245683,1768069837803,500.0,9.551e-05,2]
[401245684,1768069837839,500.0,9.551e-05,2]
[401245685,1768069837876,500.0,9.551e-05,2]
[401245686,1768069837929,500.0,9.551e-05,2]
[401245687,1768069837967,500.0,9.551e-05,2]
[401245688,1768069838017,500.0,9.551e-05,2]
[401245689,1768069838057,500.0,9.551e-05,2]
[401245690,1768069838111,500.0,9.551e-05,2]
[401245693,1768069838149,500.0,9.551e-05,2]
[401245695,1768069838191,238.31160001,9.551e-05,2]
[401245696,1768069838215,261.68839999,9.551e-05,2]
[401245698,1768069838255,500.0,9.551e-05,2]
[401245699,1768069838299,500.0,9.551e-05,2]
[401245701,1768069838340,500.0,9.551e-05,2]
[401245703,1768069838390,500.0,9.551e-05,2]
[401245704,1768069838430,500.0,9.551e-05,2]
[401245705,1768069838480,500.0,9.551e-05,2]
[401245706,1768069838518,500.0,9.551e-05,2]
[401245707,1768069838556,500.0,9.551e-05,2]
[401245708,1768069838606,500.0,9.551e-05,2]
[401245709,1768069838645,500.0,9.551e-05,2]
[401245710,1768069838681,500.0,9.551e-05,2]
[401245711,1768069838732,500.0,9.551e-05,2]
[401245712,1768069838770,500.0,9.551e-05,2]
[401245713,1768069838809,500.0,9.551e-05,2]
[401245714,1768069838863,500.0,9.551e-05,2]
[401245715,1768069838903,500.0,9.551e-05,2]
[401245716,1768069838955,500.0,9.551e-05,2]
[401245717,1768069838994,500.0,9.551e-05,2]
[401245718,1768069839033,500.0,9.551e-05,2]
[401245719,1768069839085,238.32160001,9.551e-05,2]
[401245720,1768069839109,261.67839999,9.551e-05,2]
[401245721,1768069839147,500.0,9.551e-05,2]
[401245722,1768069839198,500.0,9.551e-05,2]
[401245723,1768069839236,500.0,9.551e-05,2]
[401245724,1768069839396,500.0,9.551e-05,2]
[401245725,1768069839434,500.0,9.551e-05,2]
[401245726,1768069839472,500.0,9.551e-05,2]
[401245727,1768069839522,500.0,9.551e-05,2]
[401245728,1768069839561,500.0,9.551e-05,2]
[401245729,1768069839614,500.0,9.551e-05,2]
[401245730,1768069839665,500.0,9.551e-05,2]
[401245731,1768069839703,500.0,9.551e-05,2]
[401245732,1768069839753,500.0,9.551e-05,2]
[401245733,1768069839788,500.0,9.551e-05,2]
[401245734,1768069839837,500.0,9.551e-05,2]
[401245735,1768069839871,500.0,9.551e-05,2]
[401245737,1768069839984,500.0,9.551e-05,2]
[401245738,1768069840021,500.0,9.551e-05,2]
[401245739,1768069840059,500.0,9.551e-05,2]
[401245743,1768069840109,500.0,9.551e-05,2]
[401245749,1768069840160,238.33160001,9.551e-05,2]
[401245750,1768069840183,261.66839999,9.551e-05,2]
[401245751,1768069840253,500.0,9.551e-05,2]
[401245754,1768069840310,500.0,9.551e-05,2]
[401245758,1768069840346,500.0,9.551e-05,2]
[401245765,1768069840409,500.0,9.551e-05,2]
[401245770,1768069840446,500.0,9.551e-05,2]
[401245777,1768069840508,500.0,9.551e-05,2]
[401245805,1768069840761,-196.93558463,9.552e-05,2]
[401245815,1768069840843,-2973.66599167,9.552e-05,2]
[401245818,1768069840856,-1526.84513575,9.552e-05,2]
[401245820,1768069840867,-837765.36238209,9.552e-05,2]
[401245822,1768069840876,-220.92938941,9.69e-05,2]
[401245824,1768069840884,-585.492,9.787e-05,2]
[401245826,1768069840893,-169.04140704,9.787e-05,2]
[401245828,1768069840902,-500.0,9.788e-05,2]
[401245830,1768069840910,-500.0,9.788e-05,2]
[401245832,1768069840920,-500.0,9.789e-05,2]
[401245834,1768069840929,-200.0,9.789e-05,2]
[401245836,1768069840938,-500.0,9.789e-05,2]
[401245838,1768069840947,-200.0,9.789e-05,2]
[401245840,1768069840956,-150.0,9.789e-05,2]
[401245841,1768069840965,-150.0,9.789e-05,2]
[401245843,1768069840974,-200.88241622,9.789e-05,2]
[401245845,1768069840983,-150.0,9.789e-05,2]
[401245847,1768069840993,-440.15,9.789e-05,2]
[401245850,1768069841002,-500.0,9.926e-05,2]
[401245851,1768069841011,-500.0,9.926e-05,2]
[401245854,1768069841022,-250.0,9.926e-05,2]
[401245855,1768069841031,-250.0,9.926e-05,2]
[401245857,1768069841040,-250.0,9.926e-05,2]
[401245859,1768069841049,-150.0,9.926e-05,2]
[401245861,1768069841058,-300.0,9.985e-05,2]
[401245863,1768069841067,-300.0,9.985e-05,2]
[401245865,1768069841076,-300.0,9.985e-05,2]
[401245867,1768069841085,-300.0,9.985e-05,2]
[401245869,1768069841095,-300.0,9.985e-05,2]
[401245871,1768069841104,-300.0,9.985e-05,2]
[401245873,1768069841112,-300.0,9.985e-05,2]
[401245875,1768069841121,-300.0,9.985e-05,2]
[401245877,1768069841130,-300.0,9.985e-05,2]
[401245879,1768069841139,-300.0,9.985e-05,2]
[401245881,1768069841149,-300.0,9.985e-05,2]
[401245895,1768069841268,-300.0,9.985e-05,2]
[401245897,1768069841278,-300.0,9.985e-05,2]
[401245899,1768069841287,-300.0,9.985e-05,2]
[401245901,1768069841296,-300.0,9.985e-05,2]
[401245903,1768069841305,-600.0,9.985e-05,2]
[401245905,1768069841314,-500.0,0.00010062,2]
[401245907,1768069841324,-500.0,0.00010063,2]
[401245909,1768069841333,-500.0,0.00010063,2]
[401245910,1768069841343,-150.0,0.00010063,2]
[401245913,1768069841354,-440.15,0.00010063,2]
[401245914,1768069841363,-377.1655679,0.000101,2]
[401245917,1768069841372,-376.6134449,0.000101,2]
[401245919,1768069841382,-300.0,0.000102,2]
[401245920,1768069841391,-500.0,0.000102,2]
[401245922,1768069841401,-250.0,0.000102,2]
[401245924,1768069841410,-500.0,0.00010336,2]
[401245927,1768069841420,-500.0,0.00010337,2]
[401245928,1768069841430,-440.15,0.00010337,2]
[401245931,1768069841440,-500.0,0.00010474,2]
[401245933,1768069841449,-377.1655679,0.000105,2]
[401245934,1768069841458,-500.0,0.0001061,2]
[401245936,1768069841467,-500.0,0.00010611,2]
[401245939,1768069841477,-440.15,0.00010611,2]
[401245941,1768069841486,-500.0,0.00010748,2]
[401245943,1768069841495,-1135.88957569,0.00010883,2]
[401245945,1768069841504,-533.59953373,0.00010884,2]
[401245947,1768069841515,-500.0,0.00010885,2]
[401245949,1768069841524,-440.16267094,0.00010885,2]
[401245950,1768069841534,-999.0,0.00010959,2]
[401245952,1768069841543,-124572.635684,0.00010959,2]
[401245954,1768069841552,-1500.0,0.00010959,2]
[401245956,1768069841561,-720.0,0.00010983,2]
[401245958,1768069841571,-489.65888898,0.00011022,2]
[401245960,1768069841581,-198.30185296,0.00011651,2]
[401245962,1768069841591,-11462.05424511,0.00011735,2]
[401245964,1768069841600,-4495.33137627,0.00011795,2]
[401245966,1768069841610,-864.0,0.00012082,2]
[401245969,1768069841620,-11877.56,0.00012329,2]
[401245970,1768069841629,-9897.96,0.00012329,2]
[401245972,1768069841638,-8248.3,0.00012329,2]
[401245974,1768069841648,-6873.59,0.00012329,2]
[401245976,1768069841656,-5727.99,0.00012329,2]
[401245978,1768069841666,-4773.32,0.00012329,2]
[401245980,1768069841674,-3977.77,0.00012329,2]
[401245982,1768069841684,-3314.81,0.00012329,2]
[401245984,1768069841693,-2762.34,0.00012329,2]
[401245986,1768069841702,-2301.95,0.00012329,2]
[401245988,1768069841712,-1918.29,0.00012329,2]
[401245990,1768069841721,-1598.58,0.00012329,2]
[401245992,1768069841730,-1332.15,0.00012329,2]
[401245994,1768069841740,-1110.12,0.00012329,2]
[401245996,1768069841749,-925.1,0.00012329,2]
[401245998,1768069841759,-770.92,0.00012329,2]
[401246000,1768069841768,-642.43,0.00012329,2]
[401246002,1768069841777,-535.36,0.00012329,2]
[401246004,1768069841786,-446.13,0.00012329,2]
[401246006,1768069841796,-371.78,0.00012329,2]
[401246008,1768069841805,-309.81,0.00012329,2]
[401246010,1768069841814,-258.18,0.00012329,2]
[401246012,1768069841823,-215.15,0.00012329,2]
[401246013,1768069841832,-215.15,0.00012329,2]
[401246015,1768069841842,-860.62,0.00012329,2]
[401246018,1768069841852,-1096.46685309,0.00012329,2]
[401246020,1768069841862,-1096.46685309,0.00012329,2]
[401246022,1768069841871,-1096.46685309,0.00012329,2]
[401246024,1768069841880,-1096.46685309,0.00012329,2]
[401246026,1768069841890,-1096.46685309,0.00012329,2]
[401246028,1768069841899,-1096.46685309,0.00012329,2]
[401246030,1768069841909,-1096.46685309,0.00012329,2]
[401246032,1768069841918,-1096.46685309,0.00012329,2]
[401246034,1768069841927,-1096.46685309,0.00012329,2]
[401246036,1768069841936,-1096.46685309,0.00012329,2]
[401246037,1768069841945,-1096.46685309,0.00012329,2]
[401246039,1768069841954,-1096.46685309,0.00012329,2]
[401246041,1768069841963,-1096.46685309,0.00012329,2]
[401246043,1768069841972,-1096.46685309,0.00012329,2]
[401246046,1768069841982,-1096.46685309,0.00012329,2]
[401246047,1768069841991,-1096.46685309,0.00012329,2]
[401246050,1768069842000,-1096.46685309,0.00012329,2]
[401246051,1768069842009,-1096.46685309,0.00012329,2]
[401246053,1768069842018,-1096.46685309,0.00012329,2]
[401246055,1768069842027,-1096.46685309,0.00012329,2]
[401246057,1768069842037,-1096.46685309,0.00012329,2]
[401246059,1768069842047,-1096.46685309,0.00012329,2]
[401246061,1768069842056,-1096.46685309,0.00012329,2]
[401246063,1768069842066,-1096.46685309,0.00012329,2]
[401246065,1768069842076,-1096.46685309,0.00012329,2]
[401246067,1768069842086,-1096.46685309,0.00012329,2]
[401246070,1768069842097,-1096.46685309,0.00012329,2]
[401246071,1768069842106,-1096.46685309,0.00012329,2]
[401246073,1768069842115,-1096.46685309,0.00012329,2]
[401246075,1768069842124,-1096.46685309,0.00012329,2]
[401246077,1768069842133,-1096.46685309,0.00012329,2]
[401246079,1768069842142,-1096.46685309,0.00012329,2]
[401246081,1768069842151,-1096.46685309,0.00012329,2]
[401246083,1768069842165,-1096.46685309,0.00012329,2]
[401246085,1768069842174,-1096.46685309,0.00012329,2]
[401246087,1768069842183,-1096.46685309,0.00012329,2]
[401246089,1768069842192,-1096.46685309,0.00012329,2]
[401246091,1768069842202,-1096.46685309,0.00012329,2]
[401246093,1768069842211,-1096.46685309,0.00012329,2]
[401246095,1768069842221,-1096.46685309,0.00012329,2]
[401246096,1768069842230,-1096.46685309,0.00012329,2]
[401246098,1768069842239,-1096.46685309,0.00012329,2]
[401246100,1768069842248,-1096.46685309,0.00012329,2]
[401246101,1768069842258,-1096.46685309,0.00012329,2]
[401246103,1768069842268,-1096.46685309,0.00012329,2]
[401246105,1768069842277,-1096.46685309,0.00012329,2]
[401246106,1768069842287,-1096.46685309,0.00012329,2]
[401246107,1768069842296,-1096.46685309,0.00012329,2]
[401246108,1768069842306,-1096.46685309,0.00012329,2]
[401246109,1768069842316,-1096.46685309,0.00012329,2]
[401246110,1768069842325,-1096.46685309,0.00012329,2]
[401246111,1768069842335,-1096.46685309,0.00012329,2]
[401246112,1768069842346,-1096.46685309,0.00012329,2]
[401246113,1768069842355,-1096.46685309,0.00012329,2]
[401246114,1768069842365,-1096.46685309,0.00012329,2]
[401246115,1768069842375,-1096.46685309,0.00012329,2]
[401246116,1768069842384,-1096.46685309,0.00012329,2]
[401246117,1768069842394,-1096.46685309,0.00012329,2]
[401246118,1768069842404,-1096.46685309,0.00012329,2]
[401246119,1768069842413,-1096.46685309,0.00012329,2]
[401246120,1768069842423,-1096.46685309,0.00012329,2]
[401246121,1768069842433,-1096.46685309,0.00012329,2]
[401246122,1768069842443,-1096.46685309,0.00012329,2]
[401246123,1768069842453,-1096.46685309,0.00012329,2]
[401246124,1768069842463,-1096.46685309,0.00012329,2]
[401246125,1768069842473,-1500.0,0.00012391,2]
[401246126,1768069842483,-250.0,0.00012754,2]
[401246127,1768069842492,-7142.16034431,0.00013,2]
[401246128,1768069842501,-29781.51829863,0.00013,7]
[401246129,1768069842511,-245.94179051,0.00013,3]
[401246130,1768069842520,-1000.0,0.0001329,2]
[401246131,1768069842530,-228.55128816,0.00013651,2]
[401246132,1768069842539,-509.39,0.00013698,2]
[401246133,1768069842550,-509.39,0.00013698,2]
[401246134,1768069842560,-509.39,0.00013698,2]
[401246135,1768069842569,-509.39,0.00013698,2]
[401246136,1768069842579,-509.39,0.00013698,2]
[401246137,1768069842589,-509.39,0.00013698,2]
[401246138,1768069842598,-509.39,0.00013698,2]
[401246139,1768069842607,-509.39,0.00013698,2]
[401246140,1768069842617,-509.39,0.00013698,2]
[401246141,1768069842626,-509.39,0.00013698,2]
[401246142,1768069842636,-509.39,0.00013698,2]
[401246143,1768069842645,-509.39,0.00013698,2]
[401246144,1768069842655,-509.39,0.00013698,2]
[401246145,1768069842664,-509.39,0.00013698,2]
[401246146,1768069842673,-509.39,0.00013698,2]
[401246147,1768069842682,-509.39,0.00013698,2]
[401246148,1768069842692,-509.39,0.00013698,2]
[401246149,1768069842701,-509.39,0.00013698,2]
[401246150,1768069842711,-509.39,0.00013698,2]
[401246151,1768069842721,-509.39,0.00013698,2]
[401246152,1768069842730,-509.39,0.00013698,2]
[401246153,1768069842741,-509.39,0.00013698,2]
[401246154,1768069842751,-509.39,0.00013698,2]
[401246155,1768069842760,-509.41047474,0.00013698,2]
[401246156,1768069842770,-500.0,0.00013699,2]
[401246157,1768069842779,-1000.0,0.00014247,2]
[401246158,1768069842788,-458.09414743,0.00014355,2]
[401246159,1768069842798,-1000.0,0.00014619,2]
[401246160,1768069842807,-244.0,0.00014619,2]
[401246161,1768069842816,-1500.0,0.00014795,2]
[401246162,1768069842827,-1500.0,0.0001513,2]
[401246163,1768069842836,-498.9723282,0.00015342,2]
[401246164,1768069842846,-258.80072336,0.00015651,2]
[401246165,1768069842856,-1000.0,0.00016081,2]
[401246166,1768069842865,-492.0,0.00016081,2]
[401246167,1768069842875,-12463.75391155,0.00017,2]
[401246168,1768069842884,-289.05015855,0.00017651,2]
[401246169,1768069842894,-1000.0,0.00017689,2]
[401246171,1768069842905,-791.0,0.00017689,2]
[401246172,1768069842914,-1500.0,0.0001787,2]
[401246173,1768069842923,-303.10001603,0.000189,2]
[401246174,1768069842933,-303.10001603,0.000189,2]